lending/lending_fUSD_20260306
["ID","MTS","AMOUNT","RATE_DAILY","PERIOD"]
[407839368,1772824241492,-213.73225262,0.00017627,2]
[407839369,1772824241502,-500.0,0.00017627,2]
[407839370,1772824241511,-500.0,0.00017627,2]
[407839371,1772824241520,-500.0,0.00017627,2]
[407839372,1772824241529,-500.0,0.00017627,2]
[407839373,1772824241539,-500.0,0.00017627,2]
[407839374,1772824241549,-500.0,0.00017627,2]
[407839375,1772824241559,-500.0,0.00017627,2]
[407839376,1772824241568,-500.0,0.00017627,2]
[407839377,1772824241577,-500.0,0.00017627,2]
[407839378,1772824241586,-500.0,0.00017627,2]
[407839379,1772824241595,-500.0,0.00017627,2]
[407839380,1772824241604,-500.0,0.00017627,2]
[407839381,1772824241613,-151.0,0.00017627,2]
[407839382,1772824241623,-693.3919763,0.00017627,2]
[407839383,1772824241632,-250.0,0.00017627,2]
[407839384,1772824241641,-262.90206542,0.00017627,2]
[407839385,1772824241650,-503.01170887,0.00017627,2]
[407839386,1772824241659,-269.917619,0.00017627,2]
[407839387,1772824241668,-151.0,0.00017627,2]
[407839388,1772824241678,-3000.0,0.00017627,2]
[407839389,1772824241687,-3000.0,0.00017627,2]
[407839390,1772824241696,-3000.0,0.00017627,2]
[407839391,1772824241705,-3000.0,0.00017627,2]
[407839392,1772824241715,-3000.0,0.00017627,2]
[407839393,1772824241724,-3000.0,0.00017627,2]
[407839394,1772824241733,-3000.0,0.00017627,2]
[407839395,1772824241743,-3000.0,0.00017627,2]
[407839396,1772824241752,-3000.0,0.00017627,2]
[407839397,1772824241761,-3000.0,0.00017627,2]
[407839398,1772824241771,-3000.0,0.00017627,2]
[407839399,1772824241780,-743.50770149,0.00017627,2]
[407839400,1772824241789,-151.0,0.00017682,2]
[407839401,1772824241799,-719.04747942,0.00017682,2]
[407839402,1772824241808,-2000.0,0.00017708,2]
[407839403,1772824241817,-151.0,0.00017737,2]
[407839404,1772824241827,-745.65223616,0.00017737,2]
[407839405,1772824241836,-151.0,0.00017792,2]
[407839406,1772824241845,-773.2413689,0.00017792,2]
[407839407,1772824241854,-800.0,0.00017808,2]
[407839408,1772824241864,-2000.0,0.00017816,2]
[407839409,1772824241873,-2000.0,0.00017816,2]
[407839410,1772824241882,-386.76,0.0001783,2]
[407839411,1772824241891,-151.0,0.00017847,2]
[407839412,1772824241901,-801.85129955,0.00017847,2]
[407839413,1772824241910,-14878.13667308,0.00017867,2]
[407839414,1772824241920,-9271.02601392,0.0001788,2]
[407839415,1772824241929,-18833.89212148,0.00017898,2]
[407839416,1772824241938,-151.0,0.00017902,2]
[407839417,1772824241948,-831.51979763,0.00017902,2]
[407839418,1772824241958,-151.0,0.00017957,2]
[407839419,1772824241967,-862.28603014,0.00017957,2]
[407839420,1772824241976,-12798.57558659,0.0001799,2]
[407839421,1772824241985,-43894.92938619,0.00018,2]
[407839422,1772824241994,-200.0,0.00018,2]
[407839423,1772824242004,-151.0,0.00018012,2]
[407839424,1772824242013,-894.19061326,0.00018012,2]
[407839425,1772824242024,-2442.81,0.00018035,7]
[407839426,1772824242033,-428.04,0.00018035,7]
[407839427,1772824242042,-3070.48,0.00018035,7]
[407839428,1772824242051,-10052.11,0.00018035,7]
[407839429,1772824242060,-151.0,0.00018067,2]
[407839430,1772824242070,-927.27566595,0.00018067,2]
[407839431,1772824242079,-172.74325605,0.000181,7]
[407839432,1772824242088,-386.76,0.000181,2]
[407839433,1772824242102,-151.0,0.00018122,2]
[407839434,1772824242113,-961.58486559,0.00018122,2]
[407839435,1772824242123,-215.83,0.00018173,2]
[407839436,1772824242132,-272.62944185,0.00018175,2]
[407839437,1772824242141,-279.9045709,0.00018175,2]
[407839438,1772824242151,-151.0,0.00018175,2]
[407839439,1772824242160,-771.01748645,0.00018175,2]
[407839440,1772824242169,-151.0,0.00018177,2]
[407839441,1772824242178,-997.16350561,0.00018177,2]
[407839442,1772824242187,-1748.37932669,0.00018215,2]
[407839443,1772824242196,-151.0,0.00018232,2]
[407839444,1772824242206,-150.58,0.00018281,2]
[407839445,1772824242216,-823.0,0.00018284,2]
[407839446,1772824242226,-151.0,0.00018287,2]
[407839447,1772824242236,-151.0,0.00018342,2]
[407839448,1772824242245,-2500.0,0.00018364,2]
[407839449,1772824242255,-2500.0,0.00018364,2]
[407839450,1772824242264,-386.76,0.0001837,2]
[407839451,1772824242273,-151.0,0.00018397,2]
[407839452,1772824242283,-3292.0,0.0001842,2]
[407839453,1772824242292,-151.0,0.00018452,2]
[407839454,1772824242300,-151.0,0.00018507,2]
[407839455,1772824242311,-14878.13667308,0.00018545,2]
[407839456,1772824242321,-9271.02601392,0.00018553,2]
[407839457,1772824242333,-1628.54,0.00018561,7]
[407839458,1772824242342,-2046.99,0.00018561,7]
[407839459,1772824242351,-6701.41,0.00018561,7]
[407839460,1772824242360,-386.76,0.0001864,2]
[407839461,1772824242370,-4970.6,0.00018724,2]
[407839462,1772824242379,-1232.0,0.00018905,2]
[407839463,1772824242388,-386.76,0.0001891,2]
[407839464,1772824242397,-2588.87470879,0.00018912,2]
[407839465,1772824242406,-3000.0,0.00018912,2]
[407839466,1772824242415,-15095.69362712,0.00019,2]
[407839467,1772824242424,-371.43183159,0.00019,2]
[407839469,1772824242433,-2623.68709664,0.00019,2]
[407839470,1772824242442,-350.0,0.00019,2]
[407839471,1772824242451,-360.39836175,0.0001901,7]
[407839472,1772824242460,-150.58,0.00019013,2]
[407839473,1772824242469,-1748.37932669,0.00019057,2]
[407839474,1772824242479,-1600.0,0.00019114,2]
[407839475,1772824242489,-324.0,0.00019116,2]
[407839476,1772824242498,-324.0,0.00019151,2]
[407839477,1772824242508,-3000.0,0.00019178,2]
[407839478,1772824242517,-3000.0,0.00019178,7]
[407839479,1772824242527,-386.76,0.0001918,2]
[407839480,1772824242536,-9271.02601392,0.00019227,2]
[407839482,1772824242546,-324.0,0.00019259,2]
[407839484,1772824242555,-1500.0,0.00019302,2]
[407839486,1772824242564,-324.0,0.00019313,2]
[407839488,1772824242574,-324.0,0.00019348,2]
[407839489,1772824242583,-386.76,0.0001945,2]
[407839490,1772824242592,-324.0,0.00019462,2]
[407839492,1772824242602,-200.0,0.000195,2]
[407839499,1772824242786,-324.0,0.00019519,2]
[407839500,1772824242796,-324.0,0.00019558,2]
[407839501,1772824242805,-324.0,0.0001961,2]
[407839502,1772824242814,-500.0,0.00019671,2]
[407839503,1772824242824,-324.0,0.00019712,2]
[407839504,1772824242833,-386.76,0.0001972,2]
[407839505,1772824242842,-150.58,0.00019744,2]
[407839506,1772824242851,-324.0,0.00019873,2]
[407839507,1772824242860,-324.0,0.00019876,2]
[407839508,1772824242869,-1748.37932669,0.000199,2]
[407839509,1772824242878,-222.8461206,0.000199,2]
[407839510,1772824242888,-9271.02601392,0.000199,2]
[407839511,1772824242897,-195.96,0.00019914,2]
[407839512,1772824242906,-195.96,0.00019914,30]
[407839513,1772824242915,-730.407018,0.0001995,7]
[407839514,1772824242925,-48772.07276891,0.0001995,15]
[407839515,1772824242934,-230.20999899,0.0001995,7]
[407839516,1772824242943,-1285.223721,0.00019953,7]
[407839517,1772824242952,-119258.6679168,0.0001998,2]
[407839518,1772824242961,-386.76,0.0001999,2]
[407839520,1772824242971,-607.01427849,0.0001999,2]
[407839521,1772824242980,-172.74325605,0.00019994,2]
[407839522,1772824242990,-151.0,0.00019997,2]
[407839523,1772824242999,-300.0,0.00019999,2]
[407839524,1772824243008,-666.0,0.00019999,2]
[407839525,1772824243018,-300.0,0.00019999,2]
[407839526,1772824243027,-150.0,0.00019999,2]
[407839527,1772824243036,-263.76858852,0.00019999,2]
[407839528,1772824243045,-6572689.97256029,0.0002,2]
[407839530,1772824243288,-3720.39599414,0.0002,2]
[407839531,1772824243362,-282.52455743,0.0002,2]
[407839532,1772824243702,-341.435,0.0002,2]
[407839533,1772824243724,-822.05307381,0.0002,2]
[407839534,1772824243775,-1052.50000005,0.0002,2]
[407839535,1772824244071,-2126.48719679,0.00013857,2]
[407839538,1772824245578,-1290.62096951,0.00013857,2]
[407839539,1772824245588,-191.9272,0.0001387,2]
[407839540,1772824245597,-3249.69527792,0.00019222,2]
[407839543,1772824302406,-3606.042,0.00013593,2]
[407839544,1772824302435,-245.677,0.00013593,2]
[407839545,1772824335192,721.80014401,0.0001142,2]
[407839546,1772824338956,500.0,0.0001142,2]
[407839547,1772824347943,-514.0,0.0001342,2]
[407839552,1772824469629,-536.0,0.0001342,2]
[407839554,1772824544273,1244.62,0.00013064,2]
[407839555,1772824635621,243.96235277,0.0001142,2]
[407839556,1772824661414,352.187629,0.00013082,2]
[407839558,1772824705845,514.0,0.0001342,2]
[407839563,1772824823664,536.0,0.0001342,2]
[407839565,1772824847900,161.15,0.00012594,2]
[407839567,1772824940177,510.39170789,0.0001142,2]
[407839568,1772824983358,6437.69831034,0.00012842,2]
[407839569,1772824983383,10000.01,0.00012842,2]
[407839570,1772824983406,319.16168966,0.00012842,2]
[407839571,1772824985202,1600.0,0.00012833,2]
[407839572,1772825027058,210.33,0.00012833,2]
[407839573,1772825054678,2428.1,0.00012939,2]
[407839574,1772825065136,513.0,0.0001342,2]
[407839577,1772825130465,4000.0,0.00012867,2]
[407839578,1772825130684,929.41831034,0.00013189,2]
[407839579,1772825130713,3070.58168966,0.00013189,2]
[407839580,1772825235904,500.0,0.0001142,2]
[407839581,1772825235956,500.0,0.0001142,2]
[407839582,1772825236076,520.77764952,0.0001142,2]
[407839583,1772825236333,500.0,0.0001142,2]
[407839584,1772825236601,501.15119853,0.0001142,2]
[407839585,1772825242404,650.90522382,0.0001142,2]
[407839586,1772825244993,477.95606243,0.0001142,2]
[407839587,1772825250976,500.0,0.0001142,2]
[407839588,1772825368391,-153.0,0.0001342,2]
[407839589,1772825368421,-4694.01,0.00013424,2]
[407839590,1772825368643,-305.99,0.00013424,2]
[407839591,1772825368672,-250.0,0.00013429,2]
[407839592,1772825368703,-504.6462925,0.00013429,2]
[407839593,1772825368731,-2878.737415,0.00013464,2]
[407839594,1772825369206,-2121.262585,0.00013464,2]
[407839595,1772825369237,-1652.165838,0.00013464,2]
[407839596,1772825369266,-393.21582674,0.0001347,2]
[407839597,1772825369293,-300.0,0.00013491,2]
[407839598,1772825369341,-1200.0,0.00013491,2]
[407839599,1772825369370,-3600.01,0.00013511,2]
[407839600,1772825369402,-399.99,0.00013511,2]
[407839601,1772825369430,-262.0,0.0001356,2]
[407839602,1772825387867,495.26762686,0.00013499,2]
[407839603,1772825401158,1200.0,0.00013597,2]
[407839604,1772825401423,150.0,0.00013597,2]
[407839605,1772825403687,262.0,0.00013598,2]
[407839606,1772825410765,1000.0,0.00013597,2]
[407839607,1772825411100,151.0,0.00013595,2]
[407839608,1772825420202,492.428563,0.00013588,2]
[407839616,1772825425739,513.0,0.0001342,2]
[407839626,1772825431881,500.0,0.00013597,2]
[407839627,1772825431894,-153.0,0.00013598,2]
[407839628,1772825431903,-250.0,0.00013598,2]
[407839629,1772825431913,-35485.44544921,0.00013598,2]
[407839630,1772825431939,447.75504254,0.00013597,2]
[407839631,1772825431967,203.3063975,0.00013597,2]
[407839632,1772825432002,429.77499443,0.00013597,2]
[407839633,1772825432058,-360.80856145,0.00013598,2]
[407839634,1772825432387,500.0,0.00013597,2]
[407839635,1772825432419,-66865.3329074,0.00013598,2]
[407839636,1772825432431,-3132.11518731,0.00013598,2]
[407839637,1772825432560,500.0,0.00013597,2]
[407839638,1772825432726,194.75751259,0.00013597,2]
[407839639,1772825432802,500.0,0.00013597,2]
[407839640,1772825436794,213.12729712,0.00013597,2]
[407839641,1772825436829,500.0,0.00013597,2]
[407839642,1772825436902,500.0,0.00013597,2]
[407839643,1772825436947,500.0,0.00013597,2]
[407839644,1772825437014,500.0,0.00013597,2]
[407839645,1772825437068,500.0,0.00013597,2]
[407839646,1772825437112,500.0,0.00013597,2]
[407839647,1772825437163,500.0,0.00013597,2]
[407839648,1772825437219,500.0,0.00013597,2]
[407839649,1772825437284,92.86019282,0.00013597,2]
[407839650,1772825437310,407.13980718,0.00013597,2]
[407839651,1772825437342,500.0,0.00013597,2]
[407839652,1772825437380,500.0,0.00013597,2]
[407839653,1772825437437,187.50606575,0.00013597,2]
[407839654,1772825437504,500.0,0.00013597,2]
[407839655,1772825437545,500.0,0.00013597,2]
[407839656,1772825437601,500.0,0.00013597,2]
[407839658,1772825437933,-2589.49791791,0.00013598,2]
[407839659,1772825437944,-66432.30547033,0.00013598,2]
[407839660,1772825437955,-1115.3659334,0.00013598,2]
[407839661,1772825437968,-2324019.12857299,0.00013598,2]
[407839662,1772825437978,-535543.5241,0.00013598,2]
[407839663,1772825437988,-3400.0,0.000136,4]
[407839664,1772825437998,-500.0,0.00013673,2]
[407839665,1772825438007,-500.0,0.00013673,2]
[407839666,1772825438017,-500.0,0.00013673,2]
[407839667,1772825438026,-573.58002767,0.00013673,2]
[407839668,1772825438037,-500.12727946,0.00013673,2]
[407839669,1772825438046,-500.11286481,0.00013673,2]
[407839670,1772825438056,-167.11665281,0.00013673,2]
[407839671,1772825438066,-167.08473967,0.00013673,2]
[407839672,1772825438075,-500.0,0.00013673,2]
[407839673,1772825438085,-407.46862187,0.00013673,2]
[407839674,1772825438094,-240.12890457,0.00013673,2]
[407839675,1772825438103,-500.0,0.00013673,2]
[407839676,1772825438112,-167.13661669,0.00013673,2]
[407839677,1772825438122,-501.86035421,0.00013673,2]
[407839678,1772825438131,-219.32528239,0.00013673,2]
[407839679,1772825438140,-500.0,0.00013673,2]
[407839681,1772825438150,-500.0,0.00013673,2]
[407839683,1772825438159,-500.0,0.00013673,2]
[407839685,1772825438168,-500.0,0.00013673,2]
[407839687,1772825438177,-500.0,0.00013673,2]
[407839689,1772825438187,-200.0,0.00013683,2]
[407839691,1772825438196,-150.99,0.00013698,2]
[407839693,1772825438205,-299.99,0.00013698,2]
[407839695,1772825438214,-9999.99,0.00013698,2]
[407839697,1772825438224,-45280.47,0.00013698,2]
[407839699,1772825438234,-9999.99,0.00013698,2]
[407839701,1772825438243,-150.99,0.00013699,2]
[407839703,1772825438252,-5305.71,0.00013699,2]
[407839705,1772825438262,-242.34153148,0.00013699,2]
[407839707,1772825438271,-6800.0,0.000137,5]
[407839709,1772825438282,-618.15072587,0.00013752,2]
[407839711,1772825438291,-253.0,0.00013752,2]
[407839713,1772825438301,-532.48638415,0.00013756,2]
[407839715,1772825438311,-14667.31159303,0.00013769,2]
[407839716,1772825438320,-157.40983265,0.00013769,2]
[407839717,1772825438329,-3786.344,0.0001377,2]
[407839718,1772825438338,-257.961,0.0001377,2]
[407839719,1772825438347,-353.36614656,0.0001377,2]
[407839720,1772825438357,-4564.77767958,0.0001377,2]
[407839721,1772825438367,-13390.32300579,0.0001377,2]
[407839722,1772825438376,-2708.27910071,0.0001377,2]
[407839723,1772825438385,-500.0,0.0001377,2]
[407839724,1772825438394,-2500.0,0.0001377,2]
[407839725,1772825438404,-500.0,0.0001377,2]
[407839726,1772825438413,-500.07952757,0.00013773,2]
[407839727,1772825438422,-164.89685656,0.00013773,2]
[407839728,1772825438432,-372.24433971,0.00013773,2]
[407839729,1772825438442,-163.17298866,0.00013773,2]
[407839730,1772825438451,-501.11845623,0.00013773,2]
[407839731,1772825438461,-500.0,0.00013773,2]
[407839732,1772825438470,-589.03508066,0.00013773,2]
[407839733,1772825438479,-10200.0,0.000138,5]
[407839734,1772825438489,-4000.0,0.00013833,2]
[407839735,1772825438498,-1473.0,0.00013836,2]
[407839736,1772825438740,-254.28312793,0.00013856,2]
[407839737,1772825438750,-500.0,0.00013862,2]
[407839738,1772825438760,-200.0,0.00013862,2]
[407839739,1772825438771,-415.62690333,0.00013862,2]
[407839740,1772825438780,-500.0,0.00013862,2]
[407839741,1772825438789,-500.0,0.00013862,2]
[407839742,1772825438799,-500.0,0.00013862,2]
[407839743,1772825438807,-500.0,0.00013862,2]
[407839744,1772825438817,-500.0,0.00013862,2]
[407839745,1772825438826,-500.0,0.00013862,2]
[407839746,1772825438835,-500.0,0.00013862,2]
[407839747,1772825438845,-500.0,0.00013862,2]
[407839748,1772825438854,-500.0,0.00013862,2]
[407839749,1772825438863,-151.0,0.00013862,2]
[407839750,1772825438872,-500.0,0.00013862,2]
[407839751,1772825438881,-151.0,0.00013862,2]
[407839752,1772825438891,-500.0,0.00013862,2]
[407839753,1772825438900,-151.0,0.00013862,2]
[407839754,1772825438911,-151.0,0.00013862,2]
[407839755,1772825438920,-151.0,0.00013862,2]
[407839756,1772825438930,-151.0,0.00013862,2]
[407839757,1772825438939,-151.0,0.00013862,2]
[407839758,1772825438947,-151.0,0.00013862,2]
[407839759,1772825438956,-151.0,0.00013862,2]
[407839760,1772825438965,-151.0,0.00013862,2]
[407839761,1772825438975,-151.0,0.00013862,2]
[407839762,1772825438984,-151.0,0.00013862,2]
[407839763,1772825438993,-151.0,0.00013862,2]
[407839764,1772825439002,-500.0,0.00013862,2]
[407839765,1772825439011,-151.0,0.00013862,2]
[407839766,1772825439020,-500.0,0.00013862,2]
[407839767,1772825439031,-151.0,0.00013862,2]
[407839768,1772825439040,-500.0,0.00013862,2]
[407839769,1772825439051,-265.77000524,0.00013862,2]
[407839770,1772825439059,-500.0,0.00013862,2]
[407839771,1772825439068,-500.0,0.00013862,2]
[407839772,1772825439078,-500.0,0.00013862,2]
[407839773,1772825439087,-500.0,0.00013862,2]
[407839774,1772825439096,-500.0,0.00013862,2]
[407839775,1772825439104,-500.0,0.00013862,2]
[407839776,1772825439114,-500.0,0.00013862,2]
[407839777,1772825439123,-500.0,0.00013862,2]
[407839778,1772825439131,-151.0,0.00013862,2]
[407839779,1772825439140,-151.0,0.00013862,2]
[407839780,1772825439150,-151.0,0.00013862,2]
[407839781,1772825439159,-151.0,0.00013862,2]
[407839782,1772825439168,-151.0,0.00013862,2]
[407839783,1772825439177,-151.0,0.00013862,2]
[407839784,1772825439186,-151.0,0.00013862,2]
[407839785,1772825439195,-151.0,0.00013862,2]
[407839786,1772825439204,-151.0,0.00013862,2]
[407839787,1772825439213,-151.0,0.00013862,2]
[407839788,1772825439222,-151.0,0.00013862,2]
[407839789,1772825439231,-151.0,0.00013862,2]
[407839790,1772825439240,-548.67,0.00013862,2]
[407839791,1772825439250,-274.0,0.00013869,2]
[407839792,1772825439259,-500.0,0.00013869,2]
[407839793,1772825439268,-500.0,0.00013869,2]
[407839794,1772825439277,-500.0,0.00013869,2]
[407839795,1772825439286,-500.0,0.00013869,2]
[407839796,1772825439295,-500.00608588,0.00013869,2]
[407839797,1772825439304,-500.0,0.00013869,2]
[407839798,1772825439314,-500.0,0.00013869,2]
[407839799,1772825439323,-500.0,0.00013869,2]
[407839800,1772825439332,-500.0,0.00013869,2]
[407839801,1772825439341,-500.0,0.00013869,2]
[407839802,1772825439351,-500.0,0.00013869,2]
[407839803,1772825439360,-500.0,0.00013869,2]
[407839804,1772825439369,-500.0,0.00013869,2]
[407839805,1772825439379,-500.0,0.00013869,2]
[407839806,1772825439388,-500.0,0.00013869,2]
[407839807,1772825439399,-1244.19749992,0.00013869,5]
[407839808,1772825439410,-1244.19749992,0.00013869,5]
[407839809,1772825439419,-500.0,0.00013869,2]
[407839810,1772825439428,-500.0,0.00013869,2]
[407839811,1772825439438,-500.0,0.00013869,2]
[407839812,1772825439447,-500.0,0.00013869,2]
[407839813,1772825439457,-500.0,0.00013869,2]
[407839814,1772825439467,-500.0,0.00013869,2]
[407839815,1772825439476,-456.89150894,0.00013869,2]
[407839816,1772825439488,-720.21266631,0.00013869,5]
[407839817,1772825439497,-500.0,0.00013869,2]
[407839818,1772825439507,-500.0,0.00013869,2]
[407839819,1772825439518,-500.0,0.00013869,2]
[407839820,1772825439527,-500.0,0.00013869,2]
[407839821,1772825439537,-500.0,0.00013869,2]
[407839822,1772825439546,-500.0,0.00013869,2]
[407839823,1772825439555,-500.0,0.00013869,2]
[407839824,1772825439565,-500.0,0.00013869,2]
[407839825,1772825439574,-500.0,0.00013869,2]
[407839826,1772825439584,-500.0,0.00013869,2]
[407839827,1772825439593,-500.0,0.00013869,2]
[407839828,1772825439602,-500.0,0.00013869,2]
[407839829,1772825439611,-500.0,0.00013869,2]
[407839830,1772825439622,-500.0,0.00013869,2]
[407839831,1772825439631,-500.0,0.00013869,2]
[407839832,1772825439640,-500.0,0.00013869,2]
[407839833,1772825439649,-500.0,0.00013869,2]
[407839834,1772825439658,-500.0,0.00013869,2]
[407839835,1772825439667,-494.28601797,0.00013869,2]
[407839836,1772825439677,-500.0,0.00013869,2]
[407839837,1772825439686,-500.0,0.00013869,2]
[407839838,1772825439700,-500.0,0.00013869,2]
[407839839,1772825439710,-500.0,0.00013869,2]
[407839840,1772825439720,-500.0,0.00013869,2]
[407839841,1772825439729,-500.0,0.00013869,2]
[407839842,1772825439741,-500.0,0.00013869,2]
[407839843,1772825439752,-500.0,0.00013869,2]
[407839844,1772825439761,-500.0,0.00013869,2]
[407839845,1772825439771,-500.0,0.00013869,2]
[407839846,1772825439780,-500.0,0.00013869,2]
[407839847,1772825439790,-500.0,0.00013869,2]
[407839848,1772825439799,-500.0,0.00013869,2]
[407839849,1772825439808,-500.0,0.00013869,2]
[407839850,1772825439817,-500.0,0.00013869,2]
[407839851,1772825439826,-500.0,0.00013869,2]
[407839852,1772825439835,-500.0,0.00013869,2]
[407839853,1772825439845,-500.0,0.00013869,2]
[407839854,1772825439854,-500.0,0.00013869,2]
[407839855,1772825439862,-500.0,0.00013869,2]
[407839856,1772825439872,-500.0,0.00013869,2]
[407839857,1772825439882,-500.0,0.00013869,2]
[407839858,1772825439893,-500.0,0.00013869,2]
[407839859,1772825439904,-500.0,0.00013869,2]
[407839860,1772825439915,-500.0,0.00013869,2]
[407839861,1772825439924,-500.0,0.00013869,2]
[407839862,1772825439936,-500.0,0.00013869,2]
[407839863,1772825439946,-500.0,0.00013869,2]
[407839864,1772825439956,-512.9597754,0.00013869,2]
[407839865,1772825439966,-500.0,0.00013869,2]
[407839866,1772825439976,-500.0,0.00013869,2]
[407839867,1772825439986,-500.0,0.00013869,2]
[407839870,1772825439995,-500.0,0.00013869,2]
[407839873,1772825440004,-500.0,0.00013869,2]
[407839876,1772825440013,-500.0,0.00013869,2]
[407839877,1772825440022,-500.0,0.00013869,2]
[407839878,1772825440032,-500.0,0.00013869,2]
[407839879,1772825440041,-500.0,0.00013869,2]
[407839880,1772825440054,-323.2,0.00013869,2]
[407839881,1772825440064,-500.0,0.00013873,2]
[407839882,1772825440073,-500.0,0.00013873,2]
[407839883,1772825440083,-500.0,0.00013873,2]
[407839884,1772825440092,-500.0,0.00013873,2]
[407839885,1772825440101,-637.7067289,0.00013873,2]
[407839886,1772825440110,-500.0,0.00013873,2]
[407839887,1772825440119,-500.0,0.00013873,2]
[407839888,1772825440129,-500.0,0.00013873,2]
[407839889,1772825440138,-500.0,0.00013873,2]
[407839890,1772825440146,-500.0,0.00013873,2]
[407839891,1772825440156,-500.0,0.00013873,2]
[407839892,1772825440165,-500.0,0.00013873,2]
[407839893,1772825440175,-500.0,0.00013873,2]
[407839894,1772825440184,-500.0,0.00013873,2]
[407839895,1772825440194,-500.0,0.00013873,2]
[407839896,1772825440204,-500.0,0.00013873,2]
[407839897,1772825440213,-500.0,0.00013873,2]
[407839898,1772825440222,-500.11732428,0.00013873,2]
[407839899,1772825440231,-164.71106665,0.00013873,2]
[407839900,1772825440241,-500.0,0.00013873,2]
[407839901,1772825440250,-500.0,0.00013873,2]
[407839902,1772825440260,-500.0,0.00013873,2]
[407839903,1772825440269,-500.0,0.00013873,2]
[407839904,1772825440281,-500.0,0.00013894,2]
[407839905,1772825440290,-500.0,0.00013894,2]
[407839906,1772825440302,-1000.0,0.00013895,2]
[407839907,1772825440311,-224.0,0.00013896,2]
[407839908,1772825440320,-13700.0,0.000139,5]
[407839909,1772825440330,-500.0,0.00013901,2]
[407839910,1772825440339,-500.0,0.00013901,2]
[407839911,1772825440349,-500.0,0.00013901,2]
[407839912,1772825440359,-500.0,0.00013901,2]
[407839913,1772825440369,-283.81037588,0.00013901,2]
[407839914,1772825440379,-500.0,0.00013901,2]
[407839915,1772825440388,-500.0,0.00013901,2]
[407839916,1772825440397,-500.0,0.00013901,2]
[407839917,1772825440406,-500.0,0.00013901,2]
[407839918,1772825440415,-500.0,0.00013901,2]
[407839919,1772825440425,-500.0,0.00013901,2]
[407839920,1772825440435,-500.0,0.00013901,2]
[407839921,1772825440444,-500.0,0.00013901,2]
[407839922,1772825440453,-500.0,0.00013901,2]
[407839923,1772825440463,-500.0,0.00013901,2]
[407839924,1772825440473,-500.0,0.00013901,2]
[407839925,1772825440482,-500.0,0.00013901,2]
[407839926,1772825440492,-551.6181156,0.00013901,2]
[407839927,1772825440502,-1489.0,0.0001391,2]
[407839928,1772825440513,-163.02201589,0.00013921,2]
[407839929,1772825440522,-227.56786702,0.00013921,2]
[407839930,1772825440531,-208.72856956,0.00013921,2]
[407839931,1772825440540,-195.29494146,0.00013921,2]
[407839932,1772825440550,-500.0,0.00014039,2]
[407839933,1772825440560,-500.0,0.00014039,2]
[407839934,1772825440570,-500.0,0.00014039,2]
[407839935,1772825440580,-500.0,0.00014044,2]
[407839936,1772825440589,-500.0,0.00014101,2]
[407839937,1772825440598,-500.0,0.00014101,2]
[407839938,1772825440607,-500.0,0.00014101,2]
[407839939,1772825440616,-500.0,0.00014101,2]
[407839940,1772825440627,-500.0,0.00014101,2]